fUSD/lending_fUSD_20250512
["ID","MTS","AMOUNT","RATE_DAILY","PERIOD"]
[360850423,1747073451151,-2146.8,0.00013808,2]
[360850424,1747073451161,-400.0,0.00013808,2]
[360850425,1747073451170,-400.0,0.00013808,2]
[360850426,1747073451180,-400.0,0.00013808,2]
[360850427,1747073451190,-400.0,0.00013808,2]
[360850428,1747073451199,-400.0,0.00013808,2]
[360850429,1747073451209,-400.0,0.00013808,2]
[360850430,1747073451219,-710.16,0.00013808,2]
[360850431,1747073451229,-400.0,0.00013808,2]
[360850432,1747073451238,-400.0,0.00013808,2]
[360850433,1747073451248,-400.0,0.00013808,2]
[360850434,1747073451258,-702.17,0.00013808,2]
[360850435,1747073451268,-192.42947967,0.00013808,2]
[360850436,1747073451277,-402.17683399,0.00013808,2]
[360850437,1747073451287,-400.0,0.00013808,2]
[360850438,1747073451461,-400.0,0.00013808,2]
[360850439,1747073451472,-18861.63031502,0.00013808,2]
[360850440,1747073451486,-21987.88863256,0.00013808,2]
[360850441,1747073451516,-343.34299998,0.00013699,2]
[360850442,1747073451529,-512.15700002,0.00013699,2]
[360850443,1747073451539,-9430.96105242,0.00013808,2]
[360850444,1747073451549,-531.6,0.00013808,2]
[360850445,1747073451559,-845.85,0.00013808,2]
[360850446,1747073451570,-1000.0,0.00013808,2]
[360850447,1747073451579,-455.55,0.00013808,2]
[360850448,1747073451589,-400.0,0.00013808,2]
[360850449,1747073451599,-400.0,0.00013808,2]
[360850450,1747073451611,-400.0,0.00013808,2]
[360850451,1747073451621,-400.0,0.00013808,2]
[360850452,1747073451635,-400.0,0.00013808,2]
[360850453,1747073451649,-400.0,0.00013808,2]
[360850454,1747073451659,-400.0,0.00013808,2]
[360850455,1747073451668,-565.2,0.00013808,2]
[360850456,1747073451678,-887.72,0.00013808,2]
[360850457,1747073451688,-471.42,0.00013808,2]
[360850458,1747073451698,-400.0,0.00013808,2]
[360850459,1747073451708,-717.59,0.00013808,2]
[360850460,1747073451717,-400.0,0.00013808,2]
[360850461,1747073451727,-400.0,0.00013808,2]
[360850462,1747073451736,-686.78,0.00013808,2]
[360850463,1747073451746,-188.65862969,0.00013808,2]
[360850464,1747073451756,-33415.88503937,0.00013808,2]
[360850465,1747073451857,-400.0,0.00013698,2]
[360850466,1747073451867,-400.0,0.00013698,2]
[360850467,1747073451876,-400.0,0.00013698,2]
[360850468,1747073451886,-400.0,0.00013753,2]
[360850469,1747073451897,-400.0,0.00013753,2]
[360850470,1747073451909,-546.0,0.00013808,2]
[360850471,1747073451921,-3205.53524931,0.00013808,2]
[360850472,1747073451934,-1243.44000012,0.00013808,2]
[360850473,1747073451947,-634.38429327,0.00013808,2]
[360850474,1747073451965,-1864.12420033,0.00013808,2]
[360850475,1747073451977,-521.90118231,0.00013808,2]
[360850476,1747073451989,-1242.15,0.00013808,2]
[360850477,1747073452011,-5870.09410574,0.00013808,2]
[360850478,1747073452025,-829.25118544,0.00013808,2]
[360850479,1747073452037,-9819.07579967,0.00013808,2]
[360850480,1747073452049,-18388.00000001,0.00013808,2]
[360850481,1747073457304,1035.50121157,0.00013916,5]
[360850482,1747073457362,1035.50121157,0.00014355,5]
[360850483,1747073462103,700.0,0.000137,5]
[360850484,1747073464265,1100.0,0.000138,5]
[360850485,1747073466371,1500.0,0.000139,5]
[360850486,1747073468492,1900.0,0.000143,5]
[360850487,1747073470632,300.0,0.000144,5]
[360850488,1747074082475,847.92,0.00010779,2]
[360850489,1747074364673,1000.74254923,8e-05,2]
[360850490,1747074364694,4138.57997397,8e-05,2]
[360850491,1747074410883,-150.0,0.00015,20]
[360850492,1747074424119,150.0,0.00013699,7]
[360850501,1747074433638,-266.82178038,0.00012018,2]
[360850502,1747074448212,-36.15821962,0.00012018,2]
[360850503,1747074448235,-150.0,0.00012021,2]
[360850504,1747074448258,-50.78431375,0.00012032,2]
[360850505,1747074463633,-99.21568625,0.00012032,2]
[360850506,1747074463668,-200.78431375,0.00012033,2]
[360850507,1747074476990,-182.89717704,0.00012033,2]
[360850508,1747074492673,-116.31850921,0.00012033,2]
[360850509,1747074492706,-50.78431375,0.00012033,2]
[360850515,1747074537797,-246.46467112,0.00012032,2]
[360850516,1747074552198,-300.0,0.00011984,2]
[360850519,1747074567487,-152.0,0.00011984,2]
[360850522,1747074582044,-173.27878733,0.00011984,2]
[360850523,1747074597006,-152.04099473,0.00011984,2]
[360850527,1747074612045,-3.02021794,0.00011984,2]
[360850542,1747074631996,-200.0,0.00012008,2]
[360850544,1747074632007,-1200.0,0.00012031,2]
[360850545,1747074632016,-300.0,0.00012031,2]
[360850546,1747074632026,-300.0,0.00012031,2]
[360850547,1747074632035,-253.53532888,0.00012032,2]
[360850548,1747074632045,-500.0,0.00012032,2]
[360850549,1747074632054,-500.0,0.00012032,2]
[360850550,1747074632064,-327.36608154,0.00012032,2]
[360850551,1747074632073,-500.0,0.00012032,2]
[360850552,1747074632082,-500.0,0.00012032,2]
[360850553,1747074632092,-500.0,0.00012032,2]
[360850554,1747074632101,-500.0,0.00012032,2]
[360850555,1747074632110,-500.0,0.00012032,2]
[360850556,1747074632119,-500.0,0.00012032,2]
[360850557,1747074632129,-500.0,0.00012032,2]
[360850558,1747074632139,-500.0,0.00012032,2]
[360850559,1747074632148,-500.0,0.00012032,2]
[360850560,1747074632158,-500.0,0.00012032,2]
[360850561,1747074632168,-405.57876047,0.00012032,2]
[360850562,1747074632180,-94.42123953,0.00012032,2]
[360850563,1747074632191,-500.0,0.00012032,2]
[360850564,1747074632202,-500.0,0.00012032,2]
[360850565,1747074632212,-500.0,0.00012032,2]
[360850566,1747074632221,-500.0,0.00012032,2]
[360850567,1747074632232,-500.0,0.00012032,2]
[360850568,1747074632242,-500.0,0.00012032,2]
[360850569,1747074632254,-500.0,0.00012032,2]
[360850570,1747074632263,-500.0,0.00012032,2]
[360850571,1747074632274,-250.0,0.00012032,2]
[360850572,1747074632283,-246.46467112,0.00012032,2]
[360850573,1747074632291,-152.0,0.00012032,2]
[360850574,1747074632300,-173.27878733,0.00012032,2]
[360850575,1747074632310,-500.0,0.00012032,2]
[360850576,1747074632321,-500.0,0.00012032,2]
[360850577,1747074632330,-273.19954221,0.00012032,2]
[360850578,1747074632340,-500.0,0.00012032,2]
[360850579,1747074632350,-500.0,0.00012032,2]
[360850580,1747074632359,-224.71045473,0.00012032,2]
[360850581,1747074632370,-125.28954527,0.00012032,2]
[360850582,1747074632379,-150.0,0.00012032,2]
[360850583,1747074632388,-200.0,0.00012034,2]
[360850584,1747074632398,-1000.0,0.0001205,2]
[360850585,1747074632408,-571.15,0.00012558,2]
[360850586,1747074632418,-299.41,0.00012659,2]
[360850587,1747074632428,-379.39,0.00012733,2]
[360850588,1747074632437,-66.38756613,0.00012736,2]
[360850590,1747074632465,-313.00243387,0.00012736,2]
[360850591,1747074632474,-36.99756613,0.0001274,2]
[360850594,1747074632486,-342.39243387,0.0001274,2]
[360850596,1747074632500,-379.39,0.00012743,2]
[360850598,1747074632510,-26.65861581,0.00012746,2]
[360850600,1747074632521,-352.73138419,0.00012746,2]
[360850602,1747074632531,-379.39,0.0001275,2]
[360850603,1747074632540,-379.39,0.00012753,2]
[360850605,1747074632550,-379.39,0.00012757,2]
[360850606,1747074632559,-379.39,0.0001276,2]
[360850608,1747074632569,-128.95673889,0.00012763,2]
[360850611,1747074632582,-250.43326111,0.00012763,2]
[360850613,1747074632591,-379.39,0.00012767,2]
[360850614,1747074632601,-379.39,0.0001277,2]
[360850616,1747074632610,-290.30550438,0.00012773,2]
[360850624,1747074632642,-89.08449562,0.00012773,2]
[360850626,1747074632652,-202.09,0.00012775,2]
[360850628,1747074632662,-379.39,0.00012777,2]
[360850630,1747074632671,-347.23550438,0.0001278,2]
[360850632,1747074632684,-32.15449562,0.0001278,2]
[360850634,1747074632694,-379.39,0.00012783,2]
[360850636,1747074632703,-379.39,0.00012787,2]
[360850638,1747074632713,-224.29190438,0.0001279,2]
[360850640,1747074632726,-155.09809562,0.0001279,2]
[360850642,1747074632736,-379.39,0.00012793,2]
[360850644,1747074632752,-85.36994923,0.00012797,2]
[360850646,1747074632764,-294.02005077,0.00012797,2]
[360850648,1747074632774,-766.51,0.00012821,2]
[360850650,1747074632784,-847.92,0.00013043,2]
[360850652,1747074632793,-207.4,0.00013046,2]
[360850654,1747074632803,-436.57,0.0001305,2]
[360850656,1747074632812,-166.66,0.00013098,2]
[360850658,1747074632822,-500.0,0.00013151,2]
[360850660,1747074632831,-200.0,0.00013183,2]
[360850662,1747074632840,-420.0,0.00013207,2]
[360850664,1747074632849,-420.0,0.00013207,2]
[360850666,1747074632858,-200.0,0.0001322,2]
[360850668,1747074632868,-1680.0,0.00013234,2]
[360850670,1747074632880,-200.0,0.00013236,2]
[360850672,1747074632890,-150.99,0.00013498,2]
[360850674,1747074632899,-150.99,0.00013498,2]
[360850676,1747074632909,-597.7043,0.00013498,2]
[360850678,1747074632918,-1000.0,0.00013556,2]
[360850680,1747074632928,-4029.0,0.00013561,2]
[360850682,1747074632938,-7144.39777757,0.00013594,2]
[360850684,1747074632947,-231.31235732,0.00013598,2]
[360850686,1747074632957,-283.30338779,0.00013598,2]
[360850688,1747074632967,-29795.22408876,0.00013598,2]
[360850705,1747074633350,-384.77780344,0.00012049,2]
[360850706,1747074633360,-262.58676079,0.00012049,2]
[360850707,1747074633369,-176.42219734,0.00012049,2]
[360850708,1747074633379,-1968.45877025,0.00013598,2]
[360850709,1747074633391,-87873.18813937,0.00013598,2]
[360850710,1747074633402,-13839.86472199,0.00013598,2]
[360850711,1747074633412,-8982.9886,0.00013598,2]
[360850712,1747074633422,-103816.3422,0.00013598,2]
[360850713,1747074633432,-225.0,0.00013598,2]
[360850714,1747074633442,-3575.5268,0.00013598,2]
[360850715,1747074633452,-156.0294633,0.00013653,2]
[360850716,1747074633461,-1311.97303585,0.00013681,2]
[360850717,1747074633472,-13839.86472197,0.00013689,2]
[360850718,1747074633482,-303.80769174,0.0001369,2]
[360850719,1747074633492,-155.0,0.0001369,2]
[360850720,1747074633504,-668.65185757,0.0001369,2]
[360850721,1747074633514,-151.0,0.0001369,2]
[360850722,1747074633524,-7144.39777757,0.00013691,2]
[360850723,1747074633535,-298.624433,0.00013698,2]
[360850724,1747074633545,-298.624433,0.00013698,2]
[360850725,1747074633555,-298.624433,0.00013698,2]
[360850726,1747074633565,-298.624433,0.00013698,2]
[360850727,1747074633574,-298.624433,0.00013698,2]
[360850728,1747074633584,-298.624433,0.00013698,2]
[360850729,1747074633594,-450.66865977,0.00013698,2]
[360850730,1747074633603,-450.0,0.00013698,2]
[360850731,1747074633614,-400.0,0.00013698,2]
[360850732,1747074633624,-400.0,0.00013698,2]
[360850733,1747074633634,-400.0,0.00013698,2]
[360850734,1747074633644,-400.0,0.00013698,2]
[360850735,1747074633654,-400.0,0.00013698,2]
[360850736,1747074633664,-503.03530276,0.00013698,2]
[360850737,1747074633674,-411.08991003,0.00013698,2]
[360850738,1747074633684,-174.264359,0.00013698,2]
[360850739,1747074633694,-151.0,0.00013698,2]
[360850740,1747074633703,-151.0,0.00013698,2]
[360850741,1747074633713,-172.400668,0.00013698,2]
[360850742,1747074633723,-400.0,0.00013698,2]
[360850743,1747074633732,-3933.650813,0.00013698,2]
[360850744,1747074633743,-213.45732998,0.00013698,2]
[360850745,1747074633757,-1193.994582,0.00013698,2]
[360850746,1747074633767,-400.0,0.00013698,2]
[360850747,1747074633776,-302.60776156,0.00013698,2]
[360850748,1747074633786,-158.843993,0.00013698,2]
[360850749,1747074633795,-400.0,0.00013698,2]
[360850750,1747074633805,-451.89370204,0.00013698,2]
[360850751,1747074633815,-450.0,0.00013698,2]
[360850752,1747074633824,-400.0,0.00013698,2]
[360850753,1747074633834,-400.0,0.00013698,2]
[360850754,1747074633844,-464.35767529,0.00013698,2]
[360850755,1747074633853,-154.56716794,0.00013698,2]
[360850756,1747074633863,-400.0,0.00013698,2]
[360850757,1747074633872,-400.0,0.00013698,2]
[360850758,1747074633881,-400.0,0.00013698,2]
[360850759,1747074633891,-400.0,0.00013698,2]
[360850760,1747074633900,-400.0,0.00013698,2]
[360850761,1747074633910,-400.0,0.00013698,2]
[360850762,1747074633920,-400.0,0.00013698,2]
[360850763,1747074633929,-531.91,0.00013698,2]
[360850764,1747074633939,-400.0,0.00013698,2]
[360850765,1747074633950,-400.0,0.00013698,2]
[360850766,1747074633960,-400.0,0.00013698,2]
[360850767,1747074633970,-400.0,0.00013698,2]
[360850768,1747074633980,-400.0,0.00013698,2]
[360850769,1747074633990,-400.0,0.00013698,2]
[360850770,1747074634003,-400.0,0.00013698,2]
[360850771,1747074634012,-400.0,0.00013698,2]
[360850772,1747074634023,-400.0,0.00013698,2]
[360850773,1747074634033,-400.0,0.00013698,2]
[360850774,1747074634043,-151.0,0.00013698,2]
[360850775,1747074634054,-400.0,0.00013698,2]
[360850776,1747074634065,-400.0,0.00013698,2]
[360850777,1747074634075,-400.0,0.00013698,2]
[360850778,1747074634084,-400.0,0.00013698,2]
[360850779,1747074634094,-260.79822745,0.00013698,2]
[360850780,1747074634104,-400.0,0.00013698,2]
[360850781,1747074634114,-400.0,0.00013698,2]
[360850782,1747074634124,-150.0,0.00013698,2]
[360850783,1747074634134,-400.0,0.00013698,2]
[360850784,1747074634144,-400.0,0.00013698,2]
[360850785,1747074634154,-484.66595154,0.00013698,2]
[360850786,1747074634164,-400.0,0.00013698,2]
[360850787,1747074634174,-400.0,0.00013698,2]
[360850788,1747074634184,-400.0,0.00013698,2]
[360850789,1747074634193,-151.0,0.00013698,2]
[360850790,1747074634202,-400.0,0.00013698,2]
[360850791,1747074634212,-400.0,0.00013698,2]
[360850792,1747074634222,-400.0,0.00013698,2]
[360850793,1747074634234,-400.0,0.00013698,2]
[360850794,1747074634245,-400.0,0.00013698,2]
[360850795,1747074634255,-204.26434761,0.00013698,2]
[360850796,1747074634265,-151.148592,0.00013698,2]
[360850797,1747074634275,-400.0,0.00013698,2]
[360850798,1747074634286,-500.0,0.00013698,2]
[360850799,1747074634296,-400.0,0.00013698,2]
[360850800,1747074634305,-151.0,0.00013698,2]
[360850801,1747074634314,-400.0,0.00013698,2]
[360850802,1747074634325,-416.99185373,0.00013698,2]
[360850803,1747074634334,-151.0,0.00013698,2]
[360850804,1747074634343,-151.0,0.00013698,2]
[360850805,1747074634353,-400.0,0.00013698,2]
[360850806,1747074634362,-400.0,0.00013698,2]
[360850807,1747074634371,-417.9218095,0.00013698,2]
[360850808,1747074634381,-400.0,0.00013698,2]
[360850809,1747074634391,-151.0,0.00013698,2]
[360850810,1747074634400,-400.0,0.00013698,2]
[360850811,1747074634409,-400.0,0.00013698,2]
[360850812,1747074634419,-151.0,0.00013698,2]
[360850813,1747074634429,-400.0,0.00013698,2]
[360850814,1747074634438,-400.0,0.00013698,2]
[360850815,1747074634448,-152.69,0.00013698,2]
[360850816,1747074634458,-400.0,0.00013698,2]
[360850817,1747074634468,-400.0,0.00013698,2]
[360850818,1747074634478,-151.0,0.00013698,2]
[360850819,1747074634488,-500.0,0.00013698,2]
[360850820,1747074634498,-400.0,0.00013698,2]
[360850821,1747074634507,-400.0,0.00013698,2]
[360850822,1747074634521,-400.0,0.00013698,2]
[360850823,1747074634531,-400.0,0.00013698,2]
[360850824,1747074634540,-400.0,0.00013698,2]
[360850825,1747074634549,-151.0,0.00013698,2]
[360850826,1747074634559,-400.0,0.00013698,2]
[360850827,1747074634568,-400.0,0.00013698,2]
[360850828,1747074634577,-400.0,0.00013698,2]
[360850829,1747074634586,-400.0,0.00013698,2]
[360850830,1747074634595,-400.0,0.00013698,2]
[360850831,1747074634603,-400.0,0.00013698,2]
[360850832,1747074634613,-358.10596339,0.00013698,2]
[360850833,1747074634621,-400.0,0.00013698,2]
[360850834,1747074634630,-500.0,0.00013698,2]
[360850835,1747074634640,-451.27850082,0.00013698,2]
[360850836,1747074634648,-400.0,0.00013698,2]
[360850837,1747074634657,-401.63035676,0.00013698,2]
[360850838,1747074634666,-400.87407084,0.00013698,2]
[360850839,1747074634675,-400.0,0.00013698,2]
[360850840,1747074634684,-400.0,0.00013698,2]
[360850841,1747074634693,-400.0,0.00013698,2]
[360850842,1747074634701,-400.0,0.00013698,2]
[360850843,1747074634710,-494.55,0.00013698,2]
[360850844,1747074634719,-400.0,0.00013698,2]
[360850845,1747074634728,-400.0,0.00013698,2]
[360850846,1747074634737,-377.82795749,0.00013698,2]
[360850847,1747074634747,-400.0,0.00013698,2]
[360850848,1747074634756,-400.0,0.00013698,2]
[360850849,1747074634765,-763.27,0.00013698,2]
[360850850,1747074634775,-600.93,0.00013698,2]
[360850851,1747074634784,-400.0,0.00013698,2]
[360850852,1747074634793,-400.0,0.00013698,2]
[360850853,1747074634802,-187.232161,0.00013698,2]
[360850854,1747074634811,-411.03952964,0.00013698,2]
[360850855,1747074634820,-400.0,0.00013698,2]
[360850856,1747074634829,-464.76265421,0.00013698,2]
[360850857,1747074634838,-400.0,0.00013698,2]
[360850858,1747074634846,-500.0,0.00013698,2]
[360850859,1747074634855,-500.0,0.00013698,2]
[360850860,1747074634864,-400.0,0.00013698,2]
[360850861,1747074634873,-400.0,0.00013698,2]
[360850862,1747074634883,-400.0,0.00013698,2]
[360850863,1747074634892,-400.0,0.00013698,2]
[360850864,1747074634901,-400.0,0.00013698,2]
[360850865,1747074634910,-400.0,0.00013698,2]
[360850866,1747074634919,-727.44,0.00013698,2]
[360850867,1747074634929,-411.8,0.00013698,2]
[360850868,1747074634939,-400.0,0.00013698,2]
[360850869,1747074634948,-400.0,0.00013698,2]
[360850870,1747074634958,-400.0,0.00013698,2]
[360850871,1747074634967,-465.92743824,0.00013698,2]
[360850872,1747074634977,-400.0,0.00013698,2]
[360850873,1747074634986,-400.0,0.00013698,2]
[360850874,1747074634996,-400.0,0.00013698,2]
[360850875,1747074635005,-453.84,0.00013698,2]
[360850876,1747074635014,-400.0,0.00013698,2]
[360850877,1747074635024,-400.0,0.00013698,2]
[360850878,1747074635033,-525.9,0.00013698,2]
[360850879,1747074635042,-151.0,0.00013698,2]
[360850880,1747074635052,-400.0,0.00013698,2]
[360850881,1747074635061,-400.0,0.00013698,2]
[360850882,1747074635070,-400.0,0.00013698,2]
[360850883,1747074635080,-2943.37,0.00013698,2]
[360850884,1747074635090,-400.0,0.00013698,2]
[360850885,1747074635099,-400.0,0.00013698,2]
[360850886,1747074635109,-400.0,0.00013698,2]
[360850887,1747074635118,-681.5,0.00013698,2]
[360850888,1747074635128,-400.0,0.00013698,2]
[360850889,1747074635138,-708.3,0.00013698,2]
[360850890,1747074635147,-400.0,0.00013698,2]
[360850891,1747074635156,-400.0,0.00013698,2]
[360850892,1747074635166,-400.0,0.00013698,2]
[360850893,1747074635175,-400.0,0.00013698,2]
[360850894,1747074635184,-400.0,0.00013698,2]
[360850895,1747074635193,-400.0,0.00013698,2]
[360850896,1747074635202,-500.0,0.00013698,2]
[360850897,1747074635212,-500.0,0.00013698,2]
[360850898,1747074635221,-408.9,0.00013698,2]
[360850899,1747074635230,-400.0,0.00013698,2]
[360850900,1747074635241,-400.0,0.00013698,2]
[360850901,1747074635253,-400.0,0.00013698,2]
[360850902,1747074635262,-406.57,0.00013698,2]
[360850903,1747074635271,-400.0,0.00013698,2]
[360850904,1747074635282,-400.0,0.00013698,2]
[360850905,1747074635292,-400.0,0.00013698,2]
[360850906,1747074635302,-612.35,0.00013698,2]
[360850907,1747074635312,-545.64,0.00013698,2]
[360850908,1747074635323,-400.0,0.00013698,2]
[360850909,1747074635333,-151.0,0.00013698,2]
[360850910,1747074635342,-400.0,0.00013698,2]
[360850911,1747074635352,-707.78,0.00013698,2]
[360850912,1747074635362,-405.27214033,0.00013698,2]
[360850913,1747074635371,-400.0,0.00013698,2]
[360850914,1747074635381,-400.0,0.00013698,2]
[360850915,1747074635390,-400.0,0.00013698,2]
[360850916,1747074635400,-400.0,0.00013698,2]
[360850917,1747074635410,-400.0,0.00013698,2]
[360850918,1747074635419,-400.0,0.00013698,2]
[360850919,1747074635428,-400.0,0.00013698,2]
[360850920,1747074635438,-400.0,0.00013698,2]
[360850921,1747074635447,-400.0,0.00013698,2]
[360850922,1747074635457,-400.0,0.00013698,2]
[360850923,1747074635466,-400.0,0.00013698,2]
[360850924,1747074635475,-400.0,0.00013698,2]
[360850925,1747074635484,-1482.0,0.00013698,2]
[360850926,1747074635494,-406.5611586,0.00013698,2]
[360850927,1747074635505,-400.0,0.00013698,2]
[360850928,1747074635514,-400.0,0.00013698,2]
[360850929,1747074635523,-400.0,0.00013698,2]
[360850930,1747074635532,-400.0,0.00013698,2]
[360850931,1747074635541,-400.0,0.00013698,2]
[360850932,1747074635551,-400.0,0.00013698,2]
[360850933,1747074635560,-584.8,0.00013698,2]
[360850934,1747074635569,-400.0,0.00013698,2]
[360850935,1747074635579,-768.14,0.00013698,2]
[360850936,1747074635588,-353.54597797,0.00013698,2]
[360850937,1747074635597,-786.61,0.00013698,2]
[360850938,1747074635607,-400.0,0.00013698,2]
[360850939,1747074635616,-400.0,0.00013698,2]
[360850940,1747074635625,-400.0,0.00013698,2]
[360850941,1747074635635,-400.0,0.00013698,2]
[360850942,1747074635644,-170.591622,0.00013698,2]
[360850943,1747074635653,-400.0,0.00013698,2]
[360850944,1747074635663,-649.13,0.00013698,2]
[360850945,1747074635672,-411.50142867,0.00013698,2]
[360850946,1747074635682,-1077.69,0.00013698,2]
[360850947,1747074635691,-1089.71,0.00013698,2]
[360850948,1747074635700,-170.591622,0.00013698,2]
[360850949,1747074635710,-400.0,0.00013698,2]
[360850950,1747074635722,-400.0,0.00013698,2]
[360850951,1747074635731,-400.0,0.00013698,2]
[360850952,1747074635740,-400.0,0.00013698,2]
[360850953,1747074635751,-523.77,0.00013698,2]
[360850954,1747074635761,-400.0,0.00013698,2]
[360850955,1747074635771,-400.0,0.00013698,2]
[360850956,1747074635780,-428.87801124,0.00013698,2]
[360850957,1747074635789,-423.128787,0.00013698,2]
[360850958,1747074635799,-400.0,0.00013698,2]
[360850959,1747074635809,-1560.36,0.00013698,2]
[360850960,1747074635818,-400.0,0.00013698,2]
[360850961,1747074635827,-400.0,0.00013698,2]
[360850962,1747074635836,-423.128787,0.00013698,2]
[360850963,1747074635845,-500.0,0.00013698,2]
[360850964,1747074635855,-400.0,0.00013698,2]
[360850965,1747074635864,-475.80733155,0.00013698,2]
[360850966,1747074635874,-400.0,0.00013698,2]
[360850967,1747074635883,-400.0,0.00013698,2]
[360850968,1747074635892,-185.22547182,0.00013698,2]
[360850969,1747074635902,-400.0,0.00013698,2]
[360850970,1747074635911,-400.0,0.00013698,2]
[360850971,1747074635920,-400.0,0.00013698,2]
[360850972,1747074635930,-400.0,0.00013698,2]
[360850973,1747074635939,-400.0,0.00013698,2]
[360850974,1747074635949,-400.0,0.00013698,2]
[360850975,1747074635958,-151.0,0.00013698,2]
[360850976,1747074635967,-1000.0,0.00013698,2]
[360850977,1747074635977,-480.96,0.00013698,2]
[360850978,1747074635986,-250.719493,0.00013698,2]
[360850979,1747074635996,-400.0,0.00013698,2]
[360850980,1747074636005,-151.0,0.00013698,2]
[360850981,1747074636014,-400.0,0.00013698,2]
[360850982,1747074636024,-676.19,0.00013698,2]
[360850983,1747074636033,-250.719493,0.00013698,2]
[360850984,1747074636042,-400.0,0.00013698,2]
[360850985,1747074636051,-400.0,0.00013698,2]
[360850986,1747074636060,-400.0,0.00013698,2]
[360850987,1747074636070,-412.89,0.00013698,2]
[360850988,1747074636079,-400.0,0.00013698,2]
[360850989,1747074636088,-454.56,0.00013698,2]
[360850990,1747074636097,-400.0,0.00013698,2]
[360850991,1747074636106,-461.28,0.00013698,2]
[360850992,1747074636114,-400.0,0.00013698,2]
[360850993,1747074636124,-400.0,0.00013698,2]
[360850994,1747074636134,-400.0,0.00013698,2]
[360850995,1747074636143,-400.0,0.00013698,2]
[360850996,1747074636152,-400.0,0.00013698,2]
[360850997,1747074636161,-400.0,0.00013698,2]
[360850998,1747074636316,-899.75,0.00013698,2]
[360850999,1747074636327,-400.0,0.00013698,2]
[360851000,1747074636338,-400.0,0.00013698,2]
[360851001,1747074636348,-400.0,0.00013698,2]
[360851002,1747074636358,-400.0,0.00013698,2]
[360851003,1747074636368,-400.0,0.00013698,2]
[360851004,1747074636377,-400.0,0.00013698,2]
[360851005,1747074636387,-400.0,0.00013698,2]
[360851006,1747074636396,-550.97,0.00013698,2]
[360851007,1747074636406,-400.0,0.00013698,2]
[360851008,1747074636416,-400.0,0.00013698,2]
[360851009,1747074636425,-400.0,0.00013698,2]
[360851010,1747074636434,-400.0,0.00013698,2]
[360851011,1747074636443,-428.38756497,0.00013698,2]
[360851012,1747074636452,-400.0,0.00013698,2]
[360851013,1747074636461,-400.0,0.00013698,2]
[360851014,1747074636470,-400.0,0.00013698,2]
[360851015,1747074636480,-400.0,0.00013698,2]
[360851016,1747074636489,-400.0,0.00013698,2]
[360851017,1747074636499,-400.0,0.00013698,2]
[360851018,1747074636508,-400.0,0.00013698,2]
[360851019,1747074636518,-400.0,0.00013698,2]
[360851020,1747074636527,-400.0,0.00013698,2]
[360851021,1747074636536,-400.0,0.00013698,2]
[360851022,1747074636546,-400.0,0.00013698,2]
[360851023,1747074636555,-400.0,0.00013698,2]
[360851024,1747074636565,-3457.717275,0.00013698,2]
[360851025,1747074636574,-400.0,0.00013698,2]